lending/lending_fUSD_20250719
["ID","MTS","AMOUNT","RATE_DAILY","PERIOD"]
[373173406,1752889854431,-480.0,0.00019397,2]
[373173408,1752889854441,-882.17,0.00019397,2]
[373173410,1752889854451,-480.0,0.00019397,2]
[373173412,1752889854460,-1168.82,0.00019397,2]
[373173414,1752889854469,-480.0,0.00019397,2]
[373173416,1752889854479,-1000.0,0.00019397,2]
[373173419,1752889854488,-724.7,0.00019397,2]
[373173420,1752889854497,-480.0,0.00019397,2]
[373173422,1752889854505,-480.0,0.00019397,2]
[373173424,1752889854514,-480.0,0.00019397,2]
[373173426,1752889854522,-1550.69,0.00019397,2]
[373173428,1752889854532,-480.0,0.00019397,2]
[373173430,1752889854542,-583.62,0.00019397,2]
[373173432,1752889854552,-666.6,0.00019397,2]
[373173434,1752889854561,-480.0,0.00019397,2]
[373173436,1752889854571,-480.0,0.00019397,2]
[373173438,1752889854584,-480.0,0.00019397,2]
[373173440,1752889854594,-1297.57,0.00019397,2]
[373173442,1752889854603,-480.0,0.00019397,2]
[373173444,1752889854612,-480.0,0.00019397,2]
[373173446,1752889854621,-496.8,0.00019397,2]
[373173448,1752889854630,-879.84,0.00019397,2]
[373173450,1752889854639,-480.0,0.00019397,2]
[373173452,1752889854649,-480.0,0.00019397,2]
[373173454,1752889854658,-1029.07,0.00019397,2]
[373173456,1752889854667,-489.29,0.00019397,2]
[373173458,1752889854676,-1000.83,0.00019397,2]
[373173460,1752889854686,-2375.0,0.00019397,2]
[373173462,1752889854695,-1157.13,0.00019397,2]
[373173464,1752889854704,-1875.69,0.00019397,2]
[373173466,1752889854712,-1119.15,0.00019397,2]
[373173468,1752889854720,-1975.7,0.00019397,2]
[373173470,1752889854730,-1408.08,0.00019397,2]
[373173472,1752889854739,-893.88,0.00019397,2]
[373173474,1752889854747,-2673.6,0.00019397,2]
[373173475,1752889854756,-723.58,0.00019397,2]
[373173477,1752889854768,-480.0,0.00019397,2]
[373173479,1752889854777,-480.0,0.00019397,2]
[373173481,1752889854787,-486.31,0.00019397,2]
[373173483,1752889854796,-480.0,0.00019397,2]
[373173485,1752889854805,-480.0,0.00019397,2]
[373173487,1752889854814,-604.53,0.00019397,2]
[373173489,1752889854823,-559.33,0.00019397,2]
[373173491,1752889854833,-1020.2,0.00019397,2]
[373173493,1752889854842,-528.93,0.00019397,2]
[373173495,1752889854851,-480.0,0.00019397,2]
[373173497,1752889854860,-599.08,0.00019397,2]
[373173499,1752889854870,-480.0,0.00019397,2]
[373173501,1752889854879,-987.84,0.00019397,2]
[373173503,1752889854888,-648.9,0.00019397,2]
[373173505,1752889854898,-1953.52,0.00019397,2]
[373173507,1752889854907,-586.21,0.00019397,2]
[373173509,1752889854919,-480.0,0.00019397,2]
[373173511,1752889854928,-1355.46,0.00019397,2]
[373173513,1752889854937,-480.0,0.00019397,2]
[373173515,1752889854946,-803.91,0.00019397,2]
[373173517,1752889854955,-480.0,0.00019397,2]
[373173519,1752889854965,-1146.52,0.00019397,2]
[373173521,1752889854974,-894.8,0.00019397,2]
[373173523,1752889854983,-531.73,0.00019397,2]
[373173525,1752889854992,-652.38,0.00019397,2]
[373173527,1752889855001,-480.0,0.00019397,2]
[373173529,1752889855011,-480.0,0.00019397,2]
[373173531,1752889855021,-480.0,0.00019397,2]
[373173533,1752889855030,-1050.36,0.00019397,2]
[373173535,1752889855039,-480.0,0.00019397,2]
[373173537,1752889855049,-480.0,0.00019397,2]
[373173539,1752889855058,-920.09,0.00019397,2]
[373173541,1752889855068,-480.0,0.00019397,2]
[373173543,1752889855077,-103428.83731143,0.00019397,2]
[373173545,1752889855087,-15684.06136023,0.00019405,2]
[373173547,1752889855097,-103428.83731143,0.00019415,2]
[373173549,1752889855106,-20012.70969463,0.00019425,2]
[373173551,1752889855116,-1489.0,0.00019428,2]
[373173553,1752889855125,-1933.74502015,0.00019445,2]
[373173555,1752889855135,-164.13936327,0.0001945,2]
[373173557,1752889855144,-728.51191662,0.00019458,2]
[373173559,1752889855154,-1933.74502015,0.00019461,2]
[373173561,1752889855166,-4511.21359274,0.00019467,2]
[373173563,1752889855176,-103428.83731143,0.00019477,2]
[373173565,1752889855185,-20012.70969463,0.00019478,2]
[373173567,1752889855195,-3214.00283969,0.00019478,2]
[373173568,1752889855205,-15684.06136023,0.00019492,2]
[373173569,1752889855215,-205.43265928,0.00019496,2]
[373173570,1752889855224,-300.0,0.00019505,2]
[373173571,1752889855233,-669.75878216,0.00019505,2]
[373173572,1752889855242,-305.79578812,0.00019505,2]
[373173573,1752889855251,-480.0,0.00019506,2]
[373173574,1752889855261,-480.0,0.00019506,2]
[373173575,1752889855270,-501.15972149,0.00019506,2]
[373173576,1752889855279,-491.25,0.00019506,2]
[373173577,1752889855288,-480.0,0.00019506,2]
[373173578,1752889855298,-480.0,0.00019506,2]
[373173579,1752889855307,-480.0,0.00019506,2]
[373173580,1752889855318,-480.0,0.00019506,2]
[373173581,1752889855327,-480.0,0.00019506,2]
[373173583,1752889855338,-480.0,0.00019506,2]
[373173584,1752889855348,-480.0,0.00019506,2]
[373173586,1752889855359,-480.0,0.00019506,2]
[373173588,1752889855368,-480.0,0.00019506,2]
[373173590,1752889855378,-480.0,0.00019506,2]
[373173592,1752889855387,-480.0,0.00019506,2]
[373173594,1752889855396,-480.0,0.00019506,2]
[373173596,1752889855405,-518.63,0.00019506,2]
[373173598,1752889855417,-480.0,0.00019506,2]
[373173600,1752889855427,-480.0,0.00019506,2]
[373173602,1752889855436,-480.0,0.00019506,2]
[373173604,1752889855445,-480.0,0.00019506,2]
[373173606,1752889855455,-480.0,0.00019506,2]
[373173608,1752889855464,-480.0,0.00019506,2]
[373173610,1752889855474,-480.0,0.00019506,2]
[373173612,1752889855483,-480.0,0.00019506,2]
[373173614,1752889855492,-480.0,0.00019506,2]
[373173616,1752889855501,-480.0,0.00019506,2]
[373173618,1752889855510,-394.30043773,0.00019506,2]
[373173620,1752889855519,-3044.14,0.00019506,2]
[373173622,1752889855529,-480.0,0.00019506,2]
[373173624,1752889855538,-512.92,0.00019506,2]
[373173626,1752889855547,-480.0,0.00019506,2]
[373173628,1752889855557,-480.0,0.00019506,2]
[373173630,1752889855567,-480.0,0.00019506,2]
[373173632,1752889855581,-706.21,0.00019506,2]
[373173634,1752889855589,-480.0,0.00019506,2]
[373173636,1752889855599,-480.0,0.00019506,2]
[373173638,1752889855607,-480.0,0.00019506,2]
[373173640,1752889855619,-480.0,0.00019506,2]
[373173642,1752889855628,-480.0,0.00019506,2]
[373173644,1752889855637,-480.0,0.00019506,2]
[373173646,1752889855647,-480.0,0.00019506,2]
[373173648,1752889855657,-480.0,0.00019506,2]
[373173650,1752889855667,-480.0,0.00019506,2]
[373173651,1752889855676,-480.0,0.00019506,2]
[373173653,1752889855685,-480.0,0.00019506,2]
[373173655,1752889855694,-480.0,0.00019506,2]
[373173657,1752889855704,-480.0,0.00019506,2]
[373173659,1752889855714,-480.0,0.00019506,2]
[373173661,1752889855723,-480.0,0.00019506,2]
[373173663,1752889855733,-480.0,0.00019506,2]
[373173665,1752889855742,-480.0,0.00019506,2]
[373173667,1752889855751,-480.0,0.00019506,2]
[373173669,1752889855760,-480.0,0.00019506,2]
[373173671,1752889855770,-480.0,0.00019506,2]
[373173673,1752889855779,-480.0,0.00019506,2]
[373173675,1752889855788,-480.0,0.00019506,2]
[373173677,1752889855797,-480.0,0.00019506,2]
[373173679,1752889855807,-480.0,0.00019506,2]
[373173681,1752889855816,-480.0,0.00019506,2]
[373173683,1752889855825,-480.0,0.00019506,2]
[373173685,1752889855834,-480.0,0.00019506,2]
[373173687,1752889855843,-480.0,0.00019506,2]
[373173689,1752889855853,-495.86,0.00019506,2]
[373173691,1752889855863,-480.0,0.00019506,2]
[373173693,1752889855873,-480.0,0.00019506,2]
[373173695,1752889855882,-721.32,0.00019506,2]
[373173697,1752889855891,-480.0,0.00019506,2]
[373173699,1752889855901,-480.0,0.00019506,2]
[373173701,1752889855911,-480.0,0.00019506,2]
[373173703,1752889855921,-480.0,0.00019506,2]
[373173705,1752889855930,-575.96,0.00019506,2]
[373173707,1752889855939,-480.0,0.00019506,2]
[373173709,1752889855949,-480.0,0.00019506,2]
[373173711,1752889855958,-480.0,0.00019506,2]
[373173713,1752889855967,-480.0,0.00019506,2]
[373173715,1752889855977,-480.0,0.00019506,2]
[373173716,1752889855986,-480.0,0.00019506,2]
[373173719,1752889855995,-480.0,0.00019506,2]
[373173721,1752889856006,-480.0,0.00019506,2]
[373173722,1752889856015,-915.74,0.00019506,2]
[373173724,1752889856024,-309.44727573,0.00019506,2]
[373173726,1752889856034,-480.0,0.00019506,2]
[373173728,1752889856043,-480.0,0.00019506,2]
[373173730,1752889856052,-480.0,0.00019506,2]
[373173732,1752889856061,-480.0,0.00019506,2]
[373173734,1752889856070,-480.0,0.00019506,2]
[373173736,1752889856079,-480.0,0.00019506,2]
[373173738,1752889856088,-480.0,0.00019506,2]
[373173740,1752889856098,-480.0,0.00019506,2]
[373173742,1752889856107,-496.46,0.00019506,2]
[373173744,1752889856116,-480.0,0.00019506,2]
[373173746,1752889856126,-480.0,0.00019506,2]
[373173748,1752889856135,-480.0,0.00019506,2]
[373173750,1752889856145,-578.36,0.00019506,2]
[373173752,1752889856154,-480.0,0.00019506,2]
[373173754,1752889856164,-480.0,0.00019506,2]
[373173756,1752889856173,-480.0,0.00019506,2]
[373173758,1752889856182,-480.0,0.00019506,2]
[373173760,1752889856191,-480.0,0.00019506,2]
[373173762,1752889856201,-480.0,0.00019506,2]
[373173764,1752889856210,-480.0,0.00019506,2]
[373173766,1752889856219,-480.0,0.00019506,2]
[373173768,1752889856228,-480.0,0.00019506,2]
[373173770,1752889856237,-480.0,0.00019506,2]
[373173772,1752889856246,-1840.49,0.00019506,2]
[373173774,1752889856257,-480.0,0.00019506,2]
[373173776,1752889856267,-480.0,0.00019506,2]
[373173778,1752889856277,-480.0,0.00019506,2]
[373173780,1752889856286,-673.82,0.00019506,2]
[373173782,1752889856296,-480.0,0.00019506,2]
[373173784,1752889856305,-480.0,0.00019506,2]
[373173786,1752889856314,-480.0,0.00019506,2]
[373173788,1752889856324,-498.99,0.00019506,2]
[373173790,1752889856333,-480.0,0.00019506,2]
[373173792,1752889856343,-480.0,0.00019506,2]
[373173794,1752889856352,-480.0,0.00019506,2]
[373173796,1752889856361,-480.0,0.00019506,2]
[373173798,1752889856371,-480.0,0.00019506,2]
[373173800,1752889856380,-480.0,0.00019506,2]
[373173802,1752889856390,-480.0,0.00019506,2]
[373173804,1752889856399,-923.18,0.00019506,2]
[373173806,1752889856409,-480.0,0.00019506,2]
[373173808,1752889856420,-480.0,0.00019506,2]
[373173810,1752889856430,-480.0,0.00019506,2]
[373173812,1752889856440,-480.0,0.00019506,2]
[373173814,1752889856449,-480.0,0.00019506,2]
[373173816,1752889856459,-480.0,0.00019506,2]
[373173818,1752889856469,-480.0,0.00019506,2]
[373173820,1752889856479,-480.0,0.00019506,2]
[373173822,1752889856488,-480.0,0.00019506,2]
[373173824,1752889856498,-480.0,0.00019506,2]
[373173826,1752889856508,-480.0,0.00019506,2]
[373173828,1752889856518,-480.0,0.00019506,2]
[373173830,1752889856528,-480.0,0.00019506,2]
[373173832,1752889856538,-480.0,0.00019506,2]
[373173834,1752889856548,-497.21,0.00019506,2]
[373173836,1752889856558,-480.0,0.00019506,2]
[373173838,1752889856567,-480.0,0.00019506,2]
[373173840,1752889856578,-480.0,0.00019506,2]
[373173842,1752889856588,-504.28,0.00019506,2]
[373173844,1752889856597,-480.0,0.00019506,2]
[373173846,1752889856607,-464.3890635,0.00019506,2]
[373173848,1752889856616,-2035.93,0.00019506,2]
[373173850,1752889856626,-490.21,0.00019506,2]
[373173852,1752889856635,-501.52,0.00019506,2]
[373173854,1752889856645,-480.0,0.00019506,2]
[373173856,1752889856655,-562.57,0.00019506,2]
[373173858,1752889856666,-548.29,0.00019506,2]
[373173860,1752889856676,-571.7090589,0.00019506,2]
[373173862,1752889856686,-480.0,0.00019506,2]
[373173864,1752889856695,-480.0,0.00019506,2]
[373173866,1752889856704,-480.0,0.00019506,2]
[373173868,1752889856714,-480.0,0.00019506,2]
[373173870,1752889856723,-818.89,0.00019506,2]
[373173872,1752889856732,-480.0,0.00019506,2]
[373173873,1752889856742,-549.36577043,0.00019506,2]
[373173876,1752889856751,-687.65,0.00019506,2]
[373173877,1752889856761,-480.0,0.00019506,2]
[373173879,1752889856769,-2202.48,0.00019506,2]
[373173881,1752889856779,-387.89922093,0.00019506,2]
[373173883,1752889856788,-480.0,0.00019506,2]
[373173885,1752889856798,-480.0,0.00019506,2]
[373173887,1752889856807,-618.1,0.00019506,2]
[373173890,1752889856818,-480.0,0.00019506,2]
[373173891,1752889856827,-539.92724028,0.00019506,2]
[373173893,1752889856837,-936.33,0.00019506,2]
[373173895,1752889856847,-480.0,0.00019506,2]
[373173897,1752889856856,-480.0,0.00019506,2]
[373173899,1752889856864,-480.0,0.00019506,2]
[373173901,1752889856873,-480.0,0.00019506,2]
[373173903,1752889856883,-480.0,0.00019506,2]
[373173905,1752889856892,-480.0,0.00019506,2]
[373173907,1752889856901,-480.0,0.00019506,2]
[373173910,1752889856915,-480.0,0.00019506,2]
[373173911,1752889856925,-480.0,0.00019506,2]
[373173914,1752889856935,-480.0,0.00019506,2]
[373173916,1752889856944,-1561.05,0.00019506,2]
[373173918,1752889856954,-1095.87,0.00019506,2]
[373173920,1752889856963,-480.0,0.00019506,2]
[373173922,1752889856972,-480.0,0.00019506,2]
[373173924,1752889856983,-480.0,0.00019506,2]
[373173926,1752889856992,-480.0,0.00019506,2]
[373173928,1752889857001,-15887.57,0.00019506,2]
[373173930,1752889857011,-480.0,0.00019506,2]
[373173932,1752889857020,-480.0,0.00019506,2]
[373173933,1752889857030,-480.0,0.00019506,2]
[373173935,1752889857039,-505.31,0.00019506,2]
[373173937,1752889857048,-3440.0,0.00019506,2]
[373173939,1752889857057,-480.0,0.00019506,2]
[373173941,1752889857067,-661.19,0.00019506,2]
[373173943,1752889857076,-2091.14,0.00019506,2]
[373173945,1752889857086,-1260.7,0.00019506,2]
[373173947,1752889857096,-811.22,0.00019506,2]
[373173949,1752889857105,-480.0,0.00019506,2]
[373173951,1752889857115,-480.0,0.00019506,2]
[373173953,1752889857124,-2023.49,0.00019506,2]
[373173955,1752889857134,-480.0,0.00019506,2]
[373173957,1752889857143,-958.94,0.00019506,2]
[373173959,1752889857152,-480.0,0.00019506,2]
[373173961,1752889857162,-689.88,0.00019506,2]
[373173963,1752889857172,-480.0,0.00019506,2]
[373173965,1752889857181,-480.0,0.00019506,2]
[373173967,1752889857191,-545.23,0.00019506,2]
[373173969,1752889857202,-748.38,0.00019506,2]
[373173972,1752889857212,-664.19,0.00019506,2]
[373173974,1752889857222,-480.0,0.00019506,2]
[373173976,1752889857231,-548.66,0.00019506,2]
[373173978,1752889857241,-1476.64,0.00019506,2]
[373173979,1752889857250,-331.05791752,0.00019506,2]
[373173981,1752889857259,-641.37,0.00019506,2]
[373173983,1752889857268,-480.0,0.00019506,2]
[373173985,1752889857279,-480.0,0.00019506,2]
[373173988,1752889857289,-2525.28,0.00019506,2]
[373173990,1752889857299,-673.74,0.00019506,2]
[373173992,1752889857309,-1562.46,0.00019506,2]
[373173994,1752889857318,-712.57,0.00019506,2]
[373173996,1752889857328,-846.8,0.00019506,2]
[373173997,1752889857337,-1832.83,0.00019506,2]
[373173999,1752889857348,-853.3,0.00019506,2]
[373174001,1752889857358,-480.0,0.00019506,2]
[373174003,1752889857367,-480.0,0.00019506,2]
[373174005,1752889857376,-1334.13,0.00019506,2]
[373174007,1752889857385,-480.0,0.00019506,2]
[373174009,1752889857395,-480.0,0.00019506,2]
[373174011,1752889857405,-480.0,0.00019506,2]
[373174013,1752889857416,-1028.02,0.00019506,2]
[373174015,1752889857426,-480.0,0.00019506,2]
[373174017,1752889857435,-506.57,0.00019506,2]
[373174019,1752889857445,-480.0,0.00019506,2]
[373174021,1752889857455,-1671.76,0.00019506,2]
[373174023,1752889857464,-480.0,0.00019506,2]
[373174025,1752889857473,-480.0,0.00019506,2]
[373174028,1752889857483,-866.58,0.00019506,2]
[373174029,1752889857492,-480.0,0.00019506,2]
[373174031,1752889857502,-480.0,0.00019506,2]
[373174033,1752889857511,-975.79,0.00019506,2]
[373174035,1752889857521,-480.0,0.00019506,2]
[373174037,1752889857533,-480.0,0.00019506,2]
[373174039,1752889857542,-1338.51,0.00019506,2]
[373174041,1752889857552,-480.0,0.00019506,2]
[373174043,1752889857561,-480.0,0.00019506,2]
[373174045,1752889857570,-1141.89,0.00019506,2]
[373174047,1752889857582,-749.04,0.00019506,2]
[373174049,1752889857592,-480.0,0.00019506,2]
[373174051,1752889857602,-6257.59,0.00019506,2]
[373174053,1752889857611,-1190.47,0.00019506,2]
[373174055,1752889857621,-1342.71,0.00019506,2]
[373174057,1752889857631,-480.0,0.00019506,2]
[373174059,1752889857641,-480.0,0.00019506,2]
[373174061,1752889857650,-1162.36,0.00019506,2]
[373174063,1752889857660,-570.25,0.00019506,2]
[373174065,1752889857670,-480.0,0.00019506,2]
[373174067,1752889857680,-480.0,0.00019506,2]
[373174069,1752889857689,-753.71,0.00019506,2]
[373174071,1752889857698,-911.83,0.00019506,2]
[373174073,1752889857708,-572.78,0.00019506,2]
[373174075,1752889857717,-480.0,0.00019506,2]
[373174077,1752889857727,-1250.81,0.00019506,2]
[373174079,1752889857736,-480.0,0.00019506,2]
[373174081,1752889857746,-480.0,0.00019506,2]
[373174083,1752889857755,-480.0,0.00019506,2]
[373174085,1752889857765,-835.97,0.00019506,2]
[373174087,1752889857774,-480.0,0.00019506,2]
[373174089,1752889857784,-1701.12,0.00019506,2]
[373174091,1752889857794,-538.36,0.00019506,2]
[373174093,1752889857805,-480.0,0.00019506,2]
[373174095,1752889857814,-1610.13,0.00019506,2]
[373174097,1752889857823,-480.0,0.00019506,2]
[373174099,1752889857834,-480.0,0.00019506,2]
[373174101,1752889857843,-480.0,0.00019506,2]
[373174103,1752889857851,-480.0,0.00019506,2]
[373174105,1752889857861,-3007.93,0.00019506,2]
[373174107,1752889857871,-1735.62,0.00019506,2]
[373174109,1752889857880,-1380.22,0.00019506,2]
[373174111,1752889857889,-697.23,0.00019506,2]
[373174113,1752889857899,-480.0,0.00019506,2]
[373174115,1752889857908,-480.0,0.00019506,2]
[373174117,1752889857919,-739.04,0.00019506,2]
[373174119,1752889857928,-511.36,0.00019506,2]
[373174121,1752889857937,-480.0,0.00019506,2]
[373174135,1752889858060,-480.0,0.00019506,2]
[373174137,1752889858070,-855.54,0.00019506,2]
[373174139,1752889858080,-887.37,0.00019506,2]
[373174141,1752889858089,-620.53,0.00019506,2]
[373174144,1752889858104,-6647.08,0.00019506,2]
[373174146,1752889858119,-480.0,0.00019506,2]
[373174148,1752889858128,-1924.32,0.00019506,2]
[373174150,1752889858138,-539.18417166,0.00019506,2]
[373174152,1752889858149,-3781.44,0.00019506,2]
[373174154,1752889858159,-513.9,0.00019506,2]
[373174155,1752889858171,-776.21,0.00019506,2]
[373174156,1752889858181,-480.0,0.00019506,2]
[373174157,1752889858190,-882.17,0.00019506,2]
[373174158,1752889858200,-1168.82,0.00019506,2]
[373174159,1752889858210,-480.0,0.00019506,2]
[373174160,1752889858220,-480.0,0.00019506,2]
[373174161,1752889858229,-1000.0,0.00019506,2]
[373174162,1752889858239,-724.7,0.00019506,2]
[373174163,1752889858249,-480.0,0.00019506,2]
[373174164,1752889858259,-480.0,0.00019506,2]
[373174165,1752889858269,-480.0,0.00019506,2]
[373174167,1752889858279,-1550.69,0.00019506,2]
[373174169,1752889858288,-480.0,0.00019506,2]
[373174171,1752889858298,-583.62,0.00019506,2]
[373174173,1752889858308,-480.0,0.00019506,2]
[373174175,1752889858318,-666.6,0.00019506,2]
[373174177,1752889858329,-480.0,0.00019506,2]
[373174179,1752889858339,-480.0,0.00019506,2]
[373174181,1752889858349,-1297.57,0.00019506,2]
[373174183,1752889858359,-480.0,0.00019506,2]
[373174185,1752889858369,-480.0,0.00019506,2]
[373174187,1752889858380,-496.8,0.00019506,2]
[373174190,1752889858390,-879.84,0.00019506,2]
[373174192,1752889858402,-582.78208088,0.00019506,2]
[373174194,1752889858412,-480.0,0.00019506,2]
[373174196,1752889858423,-1029.07,0.00019506,2]
[373174198,1752889858434,-489.29,0.00019506,2]
[373174200,1752889858444,-1000.83,0.00019506,2]
[373174202,1752889858455,-2375.0,0.00019506,2]
[373174204,1752889858465,-1157.13,0.00019506,2]
[373174206,1752889858475,-1875.69,0.00019506,2]
[373174208,1752889858486,-1975.7,0.00019506,2]
[373174211,1752889858496,-1119.15,0.00019506,2]
[373174213,1752889858507,-1408.08,0.00019506,2]
[373174215,1752889858517,-893.88,0.00019506,2]
[373174217,1752889858526,-2673.6,0.00019506,2]
[373174219,1752889858536,-723.58,0.00019506,2]
[373174221,1752889858546,-480.0,0.00019506,2]
[373174223,1752889858556,-409.35523248,0.00019506,2]
[373174225,1752889858567,-480.0,0.00019506,2]
[373174227,1752889858577,-486.31,0.00019506,2]
[373174229,1752889858589,-480.0,0.00019506,2]
[373174231,1752889858599,-604.53,0.00019506,2]
[373174233,1752889858609,-559.33,0.00019506,2]
[373174235,1752889858618,-1020.2,0.00019506,2]
[373174237,1752889858632,-528.93,0.00019506,2]
[373174239,1752889858643,-480.0,0.00019506,2]
[373174241,1752889858652,-599.08,0.00019506,2]
[373174243,1752889858662,-480.0,0.00019506,2]
[373174245,1752889858673,-987.84,0.00019506,2]
[373174247,1752889858683,-648.9,0.00019506,2]
[373174249,1752889858693,-1953.52,0.00019506,2]
[373174251,1752889858703,-586.21,0.00019506,2]
[373174253,1752889858713,-480.0,0.00019506,2]
[373174255,1752889858722,-1355.46,0.00019506,2]
[373174257,1752889858732,-480.0,0.00019506,2]
[373174259,1752889858741,-803.91,0.00019506,2]
[373174261,1752889858751,-480.0,0.00019506,2]
[373174263,1752889858762,-1146.52,0.00019506,2]
[373174265,1752889858771,-894.8,0.00019506,2]
[373174267,1752889858781,-531.73,0.00019506,2]
[373174269,1752889858790,-480.0,0.00019506,2]
[373174271,1752889858800,-652.38,0.00019506,2]
[373174273,1752889858810,-480.0,0.00019506,2]
[373174275,1752889858819,-480.0,0.00019506,2]
[373174277,1752889858828,-1050.36,0.00019506,2]
[373174279,1752889858838,-480.0,0.00019506,2]
[373174281,1752889858848,-480.0,0.00019506,2]
[373174283,1752889858858,-920.09,0.00019506,2]
[373174285,1752889858869,-480.0,0.00019506,2]
[373174287,1752889858879,-3351.0,0.00019507,2]
[373174289,1752889858888,-952.0,0.00019507,2]
[373174291,1752889858898,-807.0,0.00019507,2]
[373174293,1752889858907,-1577.154,0.00019507,2]
[373174295,1752889858918,-421.433,0.00019507,2]
[373174297,1752889858928,-21361.0,0.00019507,2]
[373174300,1752889858937,-4125.0,0.00019507,2]
[373174302,1752889858947,-308.864,0.00019507,2]
[373174304,1752889858956,-1166.0,0.00019507,2]
[373174306,1752889858966,-839.0217821,0.00019528,2]
[373174308,1752889858975,-476.73874759,0.00019528,2]
[373174310,1752889858985,-210.79750409,0.00019528,2]
[373174312,1752889858994,-480.0,0.00019616,2]
[373174314,1752889859004,-480.0,0.00019616,2]
[373174316,1752889859014,-491.25,0.00019616,2]
[373174318,1752889859024,-480.0,0.00019616,2]
[373174320,1752889859034,-295.21649505,0.00019616,2]
[373174322,1752889859043,-480.0,0.00019616,2]
[373174324,1752889859053,-480.0,0.00019616,2]
[373174326,1752889859063,-480.0,0.00019616,2]
[373174328,1752889859073,-480.0,0.00019616,2]
[373174330,1752889859083,-480.0,0.00019616,2]
[373174332,1752889859093,-480.0,0.00019616,2]
[373174334,1752889859103,-480.0,0.00019616,2]
[373174336,1752889859113,-171.57576333,0.00019616,2]
[373174338,1752889859124,-480.0,0.00019616,2]
[373174340,1752889859134,-480.0,0.00019616,2]
[373174342,1752889859143,-518.63,0.00019616,2]
[373174344,1752889859153,-480.0,0.00019616,2]
[373174346,1752889859163,-480.0,0.00019616,2]
[373174348,1752889859176,-480.0,0.00019616,2]
[373174350,1752889859185,-480.0,0.00019616,2]
[373174352,1752889859195,-480.0,0.00019616,2]
[373174354,1752889859204,-480.0,0.00019616,2]
[373174356,1752889859215,-480.0,0.00019616,2]
[373174358,1752889859224,-480.0,0.00019616,2]
[373174360,1752889859234,-480.0,0.00019616,2]
[373174362,1752889859243,-480.0,0.00019616,2]
[373174364,1752889859254,-3044.14,0.00019616,2]
[373174366,1752889859264,-480.0,0.00019616,2]
[373174368,1752889859274,-480.0,0.00019616,2]
[373174370,1752889859283,-512.92,0.00019616,2]
[373174372,1752889859292,-480.0,0.00019616,2]
[373174374,1752889859302,-480.0,0.00019616,2]
[373174376,1752889859311,-706.21,0.00019616,2]
[373174378,1752889859321,-480.0,0.00019616,2]
[373174380,1752889859331,-480.0,0.00019616,2]
[373174382,1752889859340,-480.0,0.00019616,2]
[373174384,1752889859350,-480.0,0.00019616,2]
[373174386,1752889859360,-480.0,0.00019616,2]
[373174388,1752889859369,-480.0,0.00019616,2]
[373174390,1752889859379,-480.0,0.00019616,2]